fUSD/lending_fUSD_20251120
["ID","MTS","AMOUNT","RATE_DAILY","PERIOD"]
[394502893,1763641832465,-500.0,0.00016384,2]
[394502895,1763641832475,-304.78467559,0.000164,2]
[394502898,1763641832485,-1364.0,0.000164,2]
[394502899,1763641832496,-500.0,0.00016411,2]
[394502901,1763641832506,-310.0,0.00016411,2]
[394502902,1763641832516,-338.30120415,0.00016438,2]
[394502903,1763641832527,-500.0,0.00016438,2]
[394502904,1763641832538,-500.0,0.00016438,2]
[394502905,1763641832549,-2286.39,0.00016438,2]
[394502906,1763641832560,-331.22591429,0.00016438,2]
[394502907,1763641832570,-163.77,0.0001644,2]
[394502908,1763641832580,-987.8,0.00016469,2]
[394502909,1763641832591,-500.0,0.00016493,2]
[394502910,1763641832603,-500.0,0.00016548,2]
[394502911,1763641832613,-2000.0,0.00016595,2]
[394502912,1763641832623,-642.44,0.00016595,2]
[394502913,1763641832633,-1000.0,0.00016595,2]
[394502914,1763641832643,-492.586,0.00016595,2]
[394502915,1763641832654,-1000.0,0.00016595,2]
[394502916,1763641832664,-1000.0,0.00016595,2]
[394502917,1763641832674,-159.856,0.00016595,2]
[394502918,1763641832684,-166.66,0.00016601,2]
[394502919,1763641832695,-902.12,0.00016647,2]
[394502920,1763641832706,-175.0,0.000167,2]
[394502921,1763641832720,-685.96900566,0.00016821,2]
[394502922,1763641832735,-314.03099434,0.00016821,2]
[394502923,1763641832745,-940.38709243,0.00016821,2]
[394502924,1763641832757,-59.61290757,0.00016821,2]
[394502925,1763641832767,-500.0,0.00016821,2]
[394502926,1763641832777,-390.65255437,0.00016821,2]
[394502928,1763641838192,-116.01308641,0.00016821,2]
[394502929,1763641838202,-1000.0,0.00016821,2]
[394502930,1763641838212,-416.58691359,0.00016821,2]
[394502931,1763641838306,-583.41308641,0.00016821,2]
[394502932,1763641838316,-1000.0,0.00016821,2]
[394502933,1763641838326,-1000.0,0.00016821,2]
[394502934,1763641838337,-1000.0,0.00016821,2]
[394502935,1763641838347,-159.80558995,0.00016821,2]
[394502936,1763641838358,-2198.94268519,0.00016821,2]
[394502937,1763641838368,-159.80558995,0.00016841,2]
[394502938,1763641838378,-159.80558995,0.00016862,2]
[394502939,1763641838387,-200.0,0.00016863,2]
[394502940,1763641838397,-200.0,0.00016864,2]
[394502941,1763641838407,-200.0,0.00016864,2]
[394502942,1763641838418,-500.0,0.00016873,2]
[394502944,1763641838428,-500.0,0.00016873,2]
[394502946,1763641838438,-500.0,0.00016873,2]
[394502948,1763641838447,-164.7969378,0.00016873,2]
[394502949,1763641838457,-500.0,0.00016873,2]
[394502951,1763641838467,-500.0,0.00016873,2]
[394502953,1763641838477,-500.0,0.00016873,2]
[394502955,1763641838486,-500.0,0.00016873,2]
[394502957,1763641838496,-500.0,0.00016873,2]
[394502959,1763641838506,-500.0,0.00016873,2]
[394502961,1763641838515,-572.12173873,0.00016873,2]
[394502962,1763641838524,-504.75605481,0.00016873,2]
[394502964,1763641838534,-500.60845142,0.00016873,2]
[394502965,1763641838544,-500.0,0.00016873,2]
[394502966,1763641838554,-501.04958789,0.00016873,2]
[394502967,1763641838563,-500.0,0.00016873,2]
[394502968,1763641838573,-615.0,0.00016877,2]
[394502969,1763641838583,-159.80558995,0.00016882,2]
[394502970,1763641838592,-747.35930961,0.0001689,2]
[394502971,1763641838602,-163.77,0.0001689,2]
[394502972,1763641838612,-151.0,0.00016897,2]
[394502973,1763641838623,-151.0,0.00016897,2]
[394502974,1763641838633,-151.0,0.00016897,2]
[394502975,1763641838643,-500.0,0.00016899,2]
[394502976,1763641838653,-500.0,0.00016899,2]
[394502977,1763641838663,-500.0,0.00016899,2]
[394502978,1763641838672,-220.3409497,0.00016899,2]
[394502979,1763641838682,-500.0,0.00016899,2]
[394502980,1763641838692,-500.0,0.00016899,2]
[394502981,1763641838705,-476.67086434,0.00016899,2]
[394502982,1763641838714,-500.0,0.00016899,2]
[394502983,1763641838725,-256.7612307,0.00016899,2]
[394502984,1763641838735,-500.0,0.00016899,2]
[394502985,1763641838745,-500.0,0.00016899,2]
[394502986,1763641838754,-500.0,0.00016899,2]
[394502987,1763641838764,-500.0,0.00016899,2]
[394502988,1763641838774,-500.0,0.00016899,2]
[394502989,1763641838784,-500.0,0.00016899,2]
[394502990,1763641838794,-165.69252863,0.000169,2]
[394502991,1763641838803,-800.68897133,0.000169,2]
[394502992,1763641838813,-1798005.20284498,0.000169,2]
[394502993,1763641838822,-159.80558995,0.00016903,2]
[394502994,1763641838832,-500.0,0.00016921,2]
[394502995,1763641838842,-902.12,0.00016921,2]
[394502996,1763641838851,-207.7987878,0.00016923,2]
[394502997,1763641838861,-159.80558995,0.00016923,2]
[394502998,1763641838872,-150.0,0.00016941,2]
[394502999,1763641838882,-150.0,0.00016968,2]
[394503000,1763641838892,-500.0,0.00016973,2]
[394503001,1763641838902,-500.0,0.00016973,2]
[394503002,1763641838913,-500.0,0.00016973,2]
[394503003,1763641838922,-500.0,0.00016973,2]
[394503004,1763641838932,-500.0,0.00016973,2]
[394503005,1763641838942,-500.0,0.00016973,2]
[394503006,1763641838957,-500.62908268,0.00016973,2]
[394503007,1763641838967,-163.17014768,0.00016973,2]
[394503008,1763641838976,-501.11477748,0.00016973,2]
[394503009,1763641838985,-308.78213617,0.00016973,2]
[394503010,1763641838995,-161.97608416,0.00016973,2]
[394503011,1763641839004,-500.0,0.00016973,2]
[394503012,1763641839014,-16928.26,0.00016986,2]
[394503013,1763641839024,-258.0,0.00016988,2]
[394503014,1763641839036,-747.35930961,0.0001699,2]
[394503015,1763641839047,-747.35930961,0.0001699,2]
[394503016,1763641839057,-202.87,0.00016993,2]
[394503017,1763641839068,-150.0,0.00016996,2]
[394503018,1763641839077,-151.0,0.00016997,2]
[394503019,1763641839088,-547.02760132,0.00016999,2]
[394503020,1763641839098,-500.0,0.00016999,2]
[394503021,1763641839108,-500.0,0.00016999,2]
[394503022,1763641839118,-987.8,0.00016999,2]
[394503023,1763641839128,-987.8,0.00016999,2]
[394503024,1763641839138,-500.0,0.00016999,2]
[394503025,1763641839149,-216.60176433,0.00016999,2]
[394503026,1763641839160,-6731.0,0.00017,2]
[394503027,1763641839171,-453334.02829637,0.00017,2]
[394503028,1763641839182,-250.0,0.00017,2]
[394503029,1763641839192,-1466.28586068,0.00017,2]
[394503030,1763641839202,-7381110.2917622,0.00017,2]
[394503031,1763641839213,-200.0,0.00017023,2]
[394503032,1763641839223,-300.0,0.0001708,2]
[394503033,1763641839233,-314.6603662,0.00017144,2]
[394503034,1763641839243,-902.12,0.00017195,2]
[394503035,1763641839253,-432.0,0.00017227,2]
[394503036,1763641839263,-432.0,0.00017228,2]
[394503037,1763641839274,-432.0,0.00017242,2]
[394503038,1763641839284,-432.0,0.00017271,2]
[394503039,1763641839295,-2000.0,0.000173,2]
[394503040,1763641839305,-935.0,0.000173,2]
[394503041,1763641839315,-432.0,0.00017304,2]
[394503042,1763641839326,-432.0,0.00017308,2]
[394503043,1763641839336,-1500.0,0.00017368,2]
[394503044,1763641839346,-1322.97843745,0.00017368,2]
[394503045,1763641839356,-653.21806903,0.00017368,2]
[394503046,1763641839366,-1500.0,0.00017368,2]
[394503047,1763641839376,-500.0,0.00017368,2]
[394503048,1763641839385,-1382.52651458,0.00017368,2]
[394503049,1763641839395,-432.0,0.00017369,2]
[394503050,1763641839405,-4398.95453199,0.00017376,2]
[394503051,1763641839415,-500.0,0.00017421,2]
[394503052,1763641839426,-166.66,0.00017424,2]
[394503053,1763641839436,-432.0,0.00017431,2]
[394503054,1763641839446,-432.0,0.00017438,2]
[394503056,1763641839455,-1000.0,0.00017449,2]
[394503057,1763641839465,-432.0,0.00017451,2]
[394503058,1763641839475,-902.12,0.00017468,2]
[394503059,1763641839485,-432.0,0.00017501,2]
[394503060,1763641839496,-432.0,0.00017503,2]
[394503061,1763641839505,-572.18369893,0.00017521,2]
[394503062,1763641839515,-298.09980032,0.00017521,2]
[394503063,1763641839525,-500.0,0.00017521,2]
[394503064,1763641839535,-432.0,0.00017537,2]
[394503065,1763641839544,-432.0,0.00017538,2]
[394503066,1763641839554,-432.0,0.00017592,2]
[394503067,1763641839563,-432.0,0.00017601,2]
[394503068,1763641839573,-432.0,0.00017602,2]
[394503069,1763641839583,-432.0,0.0001761,2]
[394503070,1763641839593,-5002.0,0.00017622,2]
[394503071,1763641839602,-432.0,0.00017657,2]
[394503072,1763641839612,-1680.0,0.0001769,2]
[394503073,1763641839621,-420.0,0.0001769,2]
[394503074,1763641839631,-1505.127,0.00017705,2]
[394503075,1763641839640,-181.946,0.00017705,2]
[394503076,1763641839650,-902.12,0.00017742,2]
[394503077,1763641839659,-300.0,0.00017754,2]
[394503078,1763641839670,-250.0,0.00017754,2]
[394503079,1763641839681,-200.0,0.00017754,2]
[394503080,1763641839691,-200.0,0.00017754,2]
[394503081,1763641839701,-301.82596373,0.00017754,2]
[394503082,1763641839710,-250.0,0.00017754,2]
[394503083,1763641839720,-879.2,0.00017762,2]
[394503084,1763641839731,-1680.0,0.00017779,2]
[394503085,1763641839740,-432.0,0.00017784,2]
[394503094,1763641839750,-200.0,0.00017793,2]
[394503095,1763641839926,-300.0,0.00017793,2]
[394503096,1763641839936,-300.0,0.00017793,2]
[394503097,1763641839946,-300.0,0.00017793,2]
[394503098,1763641839955,-300.0,0.00017793,2]
[394503099,1763641839964,-300.0,0.00017793,2]
[394503100,1763641839974,-700.0,0.000178,6]
[394503101,1763641839984,-432.0,0.00017867,2]
[394503102,1763641839994,-1000.0,0.000179,6]
[394503103,1763641840003,-5002.0,0.00017912,2]
[394503104,1763641840014,-2000.0,0.00017916,2]
[394503105,1763641840023,-5002.0,0.00017972,2]
[394503106,1763641840033,-151.0,0.00017997,2]
[394503107,1763641840046,-252.25203378,0.00017997,2]
[394503108,1763641840056,-1000.0,0.00017999,2]
[394503109,1763641840066,-166.66,0.00017999,2]
[394503110,1763641840075,-706841.60127066,0.00018,2]
[394503111,1763641840089,-30536.99884714,0.00018,2]
[394503112,1763641840101,-5739.18585998,0.00018,2]
[394503113,1763641840113,-28057.1412,0.00018,2]
[394503114,1763641840152,-2011.5639589,0.00018,2]
[394503115,1763641840169,-304.9245,0.00018,2]
[394503116,1763641840180,-16000.0,0.00018,2]
[394503117,1763641840979,-1.7e-07,0.00018,2]
[394503118,1763641840991,-336.51195808,0.00018,2]
[394503119,1763641841003,-48176.18182971,0.00018,2]
[394503248,1763641843284,-154964.15045904,0.00018,2]
[394503255,1763641843346,-438.0,0.00018,2]
[394503278,1763641847708,482.5206,0.00016085,2]
[394503279,1763641853877,4031.99197553,0.00016085,2]
[394503280,1763641853901,10000.01,0.00016085,2]
[394503281,1763641853924,10000.01,0.00016085,2]
[394503282,1763641853948,9314.59122447,0.00016085,2]
[394503283,1763641874725,-500.0,0.00016184,2]
[394503284,1763641874749,-12.49582074,0.00016184,2]
[394503285,1763641880576,685.41877553,0.00016085,2]
[394503286,1763641880606,10000.01,0.00016085,2]
[394503287,1763641880637,10000.01,0.00016085,2]
[394503288,1763641880672,10000.01,0.00016085,2]
[394503289,1763641880699,10000.01,0.00016085,2]
[394503290,1763641880727,10000.01,0.00016085,2]
[394503291,1763641880757,10000.01,0.00016085,2]
[394503292,1763641880788,10000.01,0.00016085,2]
[394503293,1763641880815,10000.01,0.00016085,2]
[394503294,1763641880842,10000.01,0.00016085,2]
[394503296,1763641892845,-10000.01,0.00016085,2]
[394503297,1763641892962,-10000.01,0.00016085,2]
[394503298,1763641893165,-10000.01,0.00016085,2]
[394503299,1763641893296,-10000.01,0.00016085,2]
[394503300,1763641893433,-10000.01,0.00016085,2]
[394503301,1763641893598,-10000.01,0.00016085,2]
[394503302,1763641895687,-10000.01,0.00016085,2]
[394503303,1763641895830,-10000.01,0.00016085,2]
[394503304,1763641895936,-10000.01,0.00016085,2]
[394503305,1763641898583,-10000.01,0.00016085,2]
[394503306,1763641898722,-10000.01,0.00016085,2]
[394503307,1763641899045,-10000.01,0.00016085,2]
[394503308,1763641899175,-10000.01,0.00016085,2]
[394503309,1763641899296,-10000.01,0.00016085,2]
[394503310,1763641899422,-10000.01,0.00016085,2]
[394503311,1763641904892,-10000.01,0.00016085,2]
[394503312,1763641904998,-10000.01,0.00016085,2]
[394503313,1763641905527,-10000.01,0.00016085,2]
[394503314,1763641908516,-476.42208649,0.00016085,2]
[394503315,1763641913915,-10000.01,0.00016085,2]
[394503316,1763641914075,-10000.01,0.00016085,2]
[394503317,1763641914187,-10000.01,0.00016085,2]
[394503318,1763641917151,-10000.01,0.00016085,2]
[394503319,1763641917400,-10000.01,0.00016085,2]
[394503320,1763641917529,-10000.01,0.00016085,2]
[394503321,1763641920168,-10000.01,0.00016085,2]
[394503322,1763641920306,-10000.01,0.00016085,2]
[394503323,1763641920412,-10000.01,0.00016085,2]
[394503325,1763641923297,-512.49582074,0.00016085,2]
[394503326,1763641923367,-8975.01835852,0.00016085,2]
[394503327,1763641923399,-10000.01,0.00016085,2]
[394503328,1763641923531,-10000.01,0.00016085,2]
[394503329,1763641926445,-10000.01,0.00016085,2]
[394503330,1763641926661,-10000.01,0.00016085,2]
[394503331,1763641926779,-10000.01,0.00016085,2]
[394503332,1763641927831,291.681029,7.945e-05,2]
[394503333,1763641929306,-10000.01,0.00016085,2]
[394503334,1763641929455,-10000.01,0.00016085,2]
[394503335,1763641929585,-10000.01,0.00016085,2]
[394503336,1763641933077,-241.51843476,0.00015985,2]
[394503337,1763641933114,-9516.97313048,0.00016085,2]
[394503338,1763641933191,-10000.01,0.00016085,2]
[394503339,1763641933310,-10000.01,0.00016085,2]
[394503340,1763641935386,-501.92771431,0.00016085,2]
[394503341,1763641935669,-10000.01,0.00016085,2]
[394503342,1763641935933,-10000.01,0.00016085,2]
[394503343,1763641936042,-10000.01,0.00016085,2]
[394503344,1763641938566,-10000.01,0.00016085,2]
[394503345,1763641938731,-10000.01,0.00016085,2]
[394503346,1763641938894,-10000.01,0.00016085,2]
[394503347,1763641941664,-10000.01,0.00016085,2]
[394503348,1763641941851,-10000.01,0.00016085,2]
[394503349,1763641944975,-10000.01,0.00016085,2]
[394503350,1763641945227,-10000.01,0.00016085,2]
[394503351,1763641945354,-10000.01,0.00016085,2]
[394503352,1763641945475,-10000.01,0.00016085,2]
[394503353,1763641945621,-10000.01,0.00016085,2]
[394503354,1763641945794,-10000.01,0.00016085,2]
[394503357,1763641950914,-10000.01,0.00016085,2]
[394503358,1763641960086,-1161.8232,0.00016083,2]
[394503359,1763641960124,-7676.3636,0.00016085,2]
[394503360,1763641960217,-10000.01,0.00016085,2]
[394503361,1763641960335,-10000.01,0.00016085,2]
[394503362,1763641960477,-10000.01,0.00016085,2]
[394503363,1763641960617,-10000.01,0.00016085,2]
[394503364,1763641960841,-10000.01,0.00016085,2]
[394503365,1763641961005,-10000.01,0.00016085,2]
[394503366,1763641961178,-10000.01,0.00016085,2]
[394503367,1763641963150,-884.81635695,0.00016085,2]
[394503370,1763641966195,-10000.01,0.00016085,2]
[394503371,1763641972429,-1200.0,0.00016084,2]
[394503372,1763641972471,-7600.01,0.00016085,2]
[394503373,1763641978554,-4715.74298315,0.00016084,2]
[394503374,1763641978578,-568.5240337,0.00016084,2]
[394503375,1763641986083,-426.14242874,0.00016084,2]
[394503376,1763642008930,-123.85757126,0.00016084,2]
[394503377,1763642008957,-44.36882018,0.00016085,2]
[394503378,1763642049201,-426.109,0.0001604,2]
[394503379,1763642049225,-79.45083336,0.00016085,2]
[394503380,1763642056343,3155.059142,0.00016004,2]
[394503381,1763642080069,-4354.01908604,0.00016085,2]
[394503382,1763642080094,-816.24254408,0.00016085,2]
[394503383,1763642089573,-749.6744935,0.00016085,2]
[394503384,1763642099789,6844.950858,0.00015985,2]
[394503385,1763642099812,6196.736142,0.00015985,2]
[394503386,1763642102753,-270.25591339,0.00016084,2]
[394503387,1763642105881,2500.0,0.00015985,2]
[394503388,1763642128844,-29.74408661,0.00016084,2]
[394503389,1763642128868,-364.20634139,0.00016084,2]
[394503390,1763642143287,-229.74408661,0.00016084,2]
[394503391,1763642158352,-175.0,0.00016084,2]
[394503392,1763642163698,311.84725731,0.00015985,2]
[394503393,1763642167153,-204.55606878,0.00016084,2]
[394503394,1763642171023,1000.0,0.00032,120]
[394503395,1763642176791,-215.54372186,0.00016073,2]
[394503396,1763642185277,991.42660069,0.00015843,2]
[394503397,1763642185494,508.57339931,0.00015843,2]
[394503398,1763642187333,-96.30353544,0.00016073,2]
[394503399,1763642187358,-61.02350009,0.00016084,2]
[394503400,1763642192920,-165.47000313,0.00016084,2]
[394503401,1763642192943,-34.52999687,0.00016084,2]
[394503402,1763642205917,-230.58399704,0.00016084,2]
[394503403,1763642215271,-34.88600609,0.00016084,2]
[394503404,1763642215294,-156.00496456,0.00016084,2]
[394503405,1763642221282,-343.28825504,0.00016084,2]
[394503406,1763642227890,-50.7067804,0.00016084,2]
[394503407,1763642227920,-196.04568834,0.00016085,2]
[394503408,1763642233571,-265.89224303,0.00016085,2]
[394503412,1763642245150,-517.94042873,0.00016085,2]
[394503413,1763642249294,-241.44880855,0.00016085,2]
[394503414,1763642254584,-210.90862138,0.00016085,2]
[394503415,1763642260616,-310.27831496,0.00016085,2]
[394503416,1763642274035,-204.31523594,0.00016084,2]
[394503417,1763642281504,-452.3746057,0.00016084,2]
[394503418,1763642294927,-543.31015836,0.00016084,2]
[394503419,1763642294955,-300.0,0.00016085,2]
[394503420,1763642294979,-157.21893183,0.00016085,2]
[394503421,1763642304287,-92.78106817,0.00016085,2]
[394503422,1763642304317,-207.21893183,0.00016085,2]
[394503423,1763642316663,168.21,0.00015826,2]
[394503424,1763642322242,-176.35,0.00016085,2]
[394503435,1763642433399,-357.33975784,0.00016084,2]
[394503436,1763642442032,-105.66024216,0.00016084,2]
[394503437,1763642442057,-325.00951142,0.00016084,2]
[394503438,1763642456871,-411.13746789,0.00016084,2]
[394503439,1763642463154,-168.63131779,0.00016084,2]
[394503440,1763642468798,-216.60176433,0.00016084,2]
[394503441,1763642473852,-78.61993857,0.00016084,2]
[394503442,1763642473875,-175.58961273,0.00016084,2]
[394503445,1763642481007,-124.41038727,0.00016084,2]
[394503446,1763642481034,-198.83730661,0.00016085,2]
[394503447,1763642493780,-500.0,0.00016084,2]
[394503448,1763642497316,321.45,0.00015826,2]
[394503449,1763642498251,-4255.84031521,0.00016084,2]
[394503450,1763642498279,-4066.39308479,0.00016085,2]
[394503452,1763642503570,-237.43982258,0.00016085,2]
[394503453,1763642511344,174.38893912,0.00015985,2]
[394503454,1763642511772,-195.0,0.00016085,2]
[394503455,1763642521197,-405.0,0.00016085,2]
[394503456,1763642525250,500.0,0.00015984,2]
[394503463,1763642534316,558.15676939,0.00015985,2]
[394503464,1763642534651,-197.0,0.00016084,2]
[394503465,1763642534675,-103.0,0.00016085,2]
[394503469,1763642556361,156.25311211,0.00015908,2]
[394503478,1763642569801,220.0,0.00015828,2]
[394503484,1763642632805,461.77,0.00015795,2]
[394503491,1763642684099,2347.439036,0.00016003,2]
[394503514,1763642729061,-286.49306452,0.00016083,2]
[394503515,1763642737607,-13.50693548,0.00016083,2]
[394503516,1763642737632,-269.95774803,0.00016083,2]
[394503517,1763642745972,200.0,0.00015795,2]
[394503518,1763642759047,-152.57913476,0.00016083,2]
[394503519,1763642765524,245.11,0.00015726,2]
[394503520,1763642768924,-289.74907422,0.00016083,2]
[394503521,1763642773034,610.0,0.00015795,2]
[394503524,1763642778414,915.09,0.00015921,2]
[394503525,1763642790038,200.0,0.00015841,2]
[394503526,1763642794803,-294.90183944,0.00016083,2]
[394503529,1763642853324,150.0,0.00015795,2]
[394503531,1763642870973,-192.81220355,0.00016083,2]
[394503532,1763642870998,-24.80794131,0.00016083,2]
[394503534,1763642878337,-801.36451612,0.00016083,2]
[394503535,1763642880113,-373.82754257,0.00016083,2]
[394503536,1763642880143,-3001.2516349,0.00016084,2]
[394503537,1763642882966,-1677.7766,0.00016084,2]
[394503538,1763642886262,-3355.5532,0.00016084,2]
[394503539,1763642889129,-3288.9036,0.00016084,2]
[394503540,1763642889159,-1512.8865,0.00016084,2]
[394503541,1763642892279,-438.96513584,0.00016073,2]
[394503543,1763642902095,-262.22754723,0.00016073,2]
[394503544,1763642908975,528.33,0.00013699,2]
[394503547,1763642912268,-418.73460921,0.00016073,2]
[394503559,1763642924812,-500.0,0.00016072,2]
[394503560,1763642924837,-500.0,0.00016072,2]
[394503561,1763642924863,-500.0,0.00016072,2]
[394503563,1763642924889,-500.0,0.00016072,2]
[394503564,1763642924914,-500.0,0.00016072,2]
[394503565,1763642924939,-500.0,0.00016072,2]
[394503566,1763642924963,-500.0,0.00016072,2]
[394503567,1763642924989,-500.0,0.00016072,2]
[394503568,1763642925013,-500.0,0.00016072,2]
[394503569,1763642925037,-500.0,0.00016072,2]
[394503570,1763642925062,-238.58425267,0.00016072,2]
[394503571,1763642925085,-500.0,0.00016072,2]
[394503572,1763642925110,-500.0,0.00016072,2]
[394503573,1763642925134,-500.0,0.00016072,2]
[394503574,1763642925159,-500.0,0.00016072,2]
[394503575,1763642925182,-500.0,0.00016072,2]
[394503576,1763642925207,-500.0,0.00016072,2]
[394503578,1763642929798,-157.97344633,0.00016073,2]
[394503579,1763642936713,-179.67915864,0.00016073,2]
[394503581,1763642942448,-379.47980224,0.00016073,2]
[394503582,1763642943624,150.0,0.00015795,2]
[394503583,1763642944492,4279.85051219,0.00016072,2]
[394503584,1763642945920,306.85008088,0.00015984,2]
[394503586,1763642954526,-297.39,0.00016073,2]
[394503587,1763642968693,-151.0,0.0001607,2]
[394503588,1763642968723,-120.70210345,0.00016073,2]
[394503590,1763642974467,999.0,0.00015707,3]
[394503592,1763642981159,-290.58703309,0.00016073,2]
[394503593,1763642990500,169.12910317,0.00015985,2]
[394503594,1763642993806,4280.25628368,0.00015985,2]
[394503596,1763643006750,-237.49539685,0.00016063,2]
[394503597,1763643015859,-192.43272622,0.00016063,2]
[394503599,1763643027473,-265.89224303,0.00016067,2]
[394503600,1763643027502,-169.83572033,0.00016072,2]
[394503609,1763643031605,-130.16427967,0.00016072,2]
[394503610,1763643031616,-821.0,0.00016072,2]
[394503611,1763643031626,-3851.48572033,0.00016073,2]
[394503612,1763643031638,-8677.38,0.00016073,2]
[394503613,1763643031668,-963.4625,0.00016073,2]
[394503614,1763643031783,-281086.56618862,0.00016073,2]
[394503615,1763643031794,-60120.95017324,0.00016073,2]
[394503616,1763643031805,-71468.33146266,0.00016073,2]
[394503617,1763643031817,-159833.81753393,0.00016073,2]
[394503618,1763643031839,-1004.68096597,0.00016073,2]
[394503635,1763643037648,-2193.578375,0.00016073,2]
[394503636,1763643037704,-168692.97338006,0.00016073,2]
[394503637,1763643037714,-249.89033902,0.00016084,2]
[394503638,1763643037724,-1000.0,0.00016085,2]
[394503639,1763643037734,-468.2264,0.00016085,2]
[394503640,1763643037745,-5002.0,0.00016118,2]
[394503641,1763643037755,-500.0,0.00016173,2]
[394503642,1763643037764,-500.0,0.00016173,2]
[394503643,1763643037774,-500.0,0.00016173,2]
[394503644,1763643037783,-503.07135578,0.00016173,2]
[394503645,1763643037793,-363.04348691,0.00016173,2]
[394503646,1763643037804,-500.0,0.00016173,2]
[394503647,1763643037814,-500.0,0.00016173,2]
[394503648,1763643037824,-500.0,0.00016173,2]
[394503649,1763643037834,-313.99370442,0.00016173,2]
[394503650,1763643037843,-500.0,0.00016173,2]
[394503651,1763643037853,-500.0,0.00016173,2]
[394503652,1763643037863,-500.0,0.00016173,2]
[394503653,1763643037873,-500.0,0.00016173,2]
[394503654,1763643037883,-500.0,0.00016173,2]
[394503655,1763643037892,-500.0,0.00016173,2]
[394503656,1763643037902,-1214.01,0.00016173,2]
[394503657,1763643037912,-104346.96885086,0.00016184,2]
[394503658,1763643037921,-556.04174665,0.00016184,2]
[394503659,1763643037931,-500.0,0.00016184,2]
[394503660,1763643037941,-500.0,0.00016184,2]
[394503661,1763643037950,-315.08513889,0.00016184,2]
[394503662,1763643037960,-500.0,0.00016184,2]
[394503663,1763643037969,-527.87918583,0.00016239,2]
[394503664,1763643037979,-500.0,0.00016239,2]
[394503665,1763643037989,-2500.0,0.00016421,2]
[394503667,1763643038000,-10432.74561891,0.00016421,2]
[394503670,1763643038014,-202.81379868,0.00016438,2]
[394503672,1763643038024,-1905.32,0.00016438,2]
[394503674,1763643038033,-1214.01,0.00016447,2]
[394503676,1763643038044,-418.74219125,0.00016484,2]
[394503678,1763643038054,-249.89033902,0.00016492,2]
[394503680,1763643038063,-370.53949478,0.00016496,2]
[394503682,1763643038073,-151.0,0.00016511,2]
[394503683,1763643038083,-151.0,0.00016511,2]
[394503684,1763643038094,-151.0,0.00016511,2]
[394503685,1763643038105,-151.0,0.00016511,2]
[394503686,1763643038114,-151.0,0.00016511,2]
[394503687,1763643038124,-151.0,0.00016511,2]
[394503688,1763643038134,-151.0,0.00016511,2]
[394503689,1763643038145,-151.0,0.00016511,2]
[394503690,1763643038155,-151.0,0.00016511,2]
[394503691,1763643038165,-151.0,0.00016511,2]
[394503692,1763643038175,-151.0,0.00016511,2]
[394503693,1763643038185,-151.0,0.00016511,2]
[394503694,1763643038195,-151.0,0.00016511,2]
[394503695,1763643038208,-151.0,0.00016511,2]
[394503696,1763643038219,-151.0,0.00016511,2]
[394503697,1763643038230,-151.0,0.00016511,2]
[394503698,1763643038240,-151.0,0.00016511,2]
[394503699,1763643038251,-151.0,0.00016511,2]
[394503700,1763643038261,-151.0,0.00016511,2]
[394503701,1763643038270,-151.0,0.00016511,2]
[394503702,1763643038280,-504.23866479,0.0001652,2]
[394503703,1763643038289,-500.0,0.0001652,2]
[394503704,1763643038299,-500.0,0.0001652,2]
[394503705,1763643038310,-500.0,0.0001652,2]